[Event "FIDE WCCC Girls-10 2024"]
[Site "Montesilvano"]
[Date "2024.11.22"]
[Round "7.45"]
[White "Damaso Tacoronte, Carolina"]
[Black "Song, Rina"]
[Result "0-1"]
[Annotator "NA RC"]
[ECO "B13"]
[WhiteElo "1875"]
[BlackElo "1599"]
[PlyCount "86"]
[EventDate "2024.11.18"]
[EventType "swiss"]
[EventCountry "ITA"]
[SourceTitle "playchess.com"]
[Source "ChessBase"]
[SourceQuality "1"]
[TimeControl "5400+30"]

1. e4 {[%emt 0:00:03]} c6 {[%emt 0:00:06]} 2. d4 {[%emt 0:01:02]} d5 {[%emt 0:00:06]} 3. exd5 {[%emt 0:01:15]} cxd5 {[%emt 0:00:10]} 4. Nf3 {[%emt 0:00:20]} Nf6 {[%emt 0:00:27]} 5. Ne5 {[%emt 0:02:20]} g6 {[%emt 0:01:44]} 6. Nc3 {[%emt 0:05:02]} Bg7 {[%emt 0:00:59]} 7. Be2 {[%emt 0:04:29]} O-O {[%emt 0:00:15]} 8. O-O {[%emt 0:01:02]} Bf5 {[%emt 0:01:51]} 9. Bf4 {[%emt 0:04:41]} Nbd7 $11 {[%emt 0:01:58]} 10. Nf3 {[%emt 0:01:38]} a6 {[%emt 0:01:24]} 11. Nh4 {[%emt 0:03:00]} Be6 {[%emt 0:08:11]} 12. Nf3 {[%emt 0:04:10]} b5 {[%emt 0:00:13]} 13. a3 {[%emt 0:00:56]} Qb6 {[%emt 0:10:38]} 14. b4 {[%emt 0:04:22]} Rac8 {[%emt 0:03:57]} 15. Na2 {[%emt 0:03:49]} a5 {[%emt 0:02:50]} 16. bxa5 {[%emt 0:04:50]} Qxa5 {[%emt 0:00:43]} 17. Nb4 {[%emt 0:00:24]} Ne4 {[%emt 0:02:03]} 18. Bd3 {[%emt 0:02:56]} Ndf6 {[%emt 0:01:39]} 19. Bxe4 {[%emt 0:10:42]} Nxe4 {[%emt 0:00:46]} 20. Ng5 {[%emt 0:01:33]} Nxg5 {[%emt 0:00:13]} 21. Bxg5 {[%emt 0:00:19]} Rfe8 {[%emt 0:00:09]} 22. h3 {[%emt 0:05:56]} Rc3 {[%emt 0:00:34]} 23. Bc1 {[%emt 0:08:03]} Bf5 {[%emt 0:02:06]} 24. Bb2 {[%emt 0:02:16]} Rc4 {[%emt 0:00:09]} 25. Nxd5 {[%emt 0:03:12]} Rxc2 {[%emt 0:01:26]} 26. Bc1 {[%emt 0:06:31]} Be4 {[%emt 0:02:25]} 27. Nb4 {[%emt 0:02:46]} Rc4 {[%emt 0:04:03]} 28. Be3 {[%emt 0:07:24]} Qd8 {[%emt 0:00:41]} 29. Rc1 {[%emt 0:03:55]} Rxc1 {[%emt 0:00:29]} 30. Qxc1 {[%emt 0:00:07]} Bxd4 {[%emt 0:01:18]} 31. Rd1 {[%emt 0:00:11]} e5 {[%emt 0:00:14]} 32. Bxd4 {[%emt 0:00:53]} exd4 {[%emt 0:00:09]} 33. Nc6 {[%emt 0:00:42]} Bxc6 {[%emt 0:00:18]} 34. Qxc6 {[%emt 0:00:08]} Re5 {[%emt 0:01:04]} 35. Qb7 {[%emt 0:05:14]} d3 {[%emt 0:00:43]} 36. Rxd3 {[%emt 0:00:54]} Re1+ {[%emt 0:00:25]} 37. Kh2 {[%emt 0:00:10]} Qxd3 {[%emt 0:00:12]} 38. Qb8+ {[%emt 0:01:14]} Kg7 {[%emt 0:00:05]} 39. a4 {[%emt 0:00:47]} bxa4 {[%emt 0:01:04]} 40. Qb2+ {[%emt 0:01:14]} Kh6 {[%emt 0:00:51]} 41. Qb4 {[%emt 0:00:00]} Qe4 {[%emt 0:00:46]} 42. Qf8+ {[%emt 0:00:00]} Kg5 {[%emt 0:00:54]} 43. Qxf7 {[%emt 0:00:15]} Qf4+ {[%emt 0:51:42]} 0-1

[Event "FIDE WCCC Girls-10 2024"]
[Site "Montesilvano"]
[Date "2024.11.23"]
[Round "8.1"]
[White "Tselmuun, Ider"]
[Black "Berikkyzy Alanna"]
[Result "1-0"]
[Annotator "RC"]
[ECO "B36"]
[WhiteElo "1846"]
[BlackElo "2043"]
[PlyCount "77"]
[EventDate "2024.11.18"]
[EventType "swiss"]
[EventCountry "ITA"]
[SourceTitle "playchess.com"]
[Source "ChessBase"]
[SourceQuality "1"]
[TimeControl "5400+30"]

1. e4 {[%emt 0:00:06]} c5 {[%emt 0:00:30]} 2. Nf3 {[%emt 0:00:16]} Nc6 {[%emt 0:00:22]} 3. d4 {[%emt 0:00:18]} cxd4 {[%emt 0:01:01]} 4. Nxd4 {[%emt 0:00:09]} g6 {[%emt 0:00:30]} 5. c4 {[%emt 0:01:48]} Nf6 {[%emt 0:00:43]} 6. Nc3 {[%emt 0:00:18]} d6 {[%emt 0:00:31]} 7. f3 {[%emt 0:00:23]} Nxd4 {[%emt 0:01:08]} 8. Qxd4 {[%emt 0:00:06]} Bg7 {[%emt 0:00:50]} 9. Be3 {[%emt 0:00:38]} O-O {[%emt 0:01:03]} 10. Qd2 {[%emt 0:00:12]} Be6 {[%emt 0:01:59]} 11. Bh6 {[%emt 0:04:52]} Rc8 {[%emt 0:04:04]} 12. Bxg7 {[%emt 0:00:18]} Kxg7 {[%emt 0:00:24]} 13. b3 {[%emt 0:00:26]} a6 {[%emt 0:01:43]} 14. Bd3 {[%emt 0:01:55]} Qa5 {[%emt 0:03:42]} 15. Ne2 {[%emt 0:02:02]} Qe5 {[%emt 0:05:24]} 16. O-O {[%emt 0:03:19]} b5 {[%emt 0:03:54]} 17. cxb5 {[%emt 0:00:15]} axb5 {[%emt 0:01:20]} 18. Qb4 {[%emt 0:02:48]} Bd7 {[%emt 0:05:46]} 19. a4 {[%emt 0:14:34]} bxa4 {[%emt 0:03:17]} 20. bxa4 {[%emt 0:00:13]} d5 {[%emt 0:03:08]} 21. f4 {[%emt 0:02:30]} Qh5 {[%emt 0:02:06]} 22. e5 {[%emt 0:03:16]} Ng4 {[%emt 0:01:46]} 23. h3 {[%emt 0:00:16]} Ne3 {[%emt 0:05:31]} 24. Rf3 {[%emt 0:01:27]} Nc2 {[%emt 0:07:29]} 25. Bxc2 {[%emt 0:00:23]} Rxc2 {[%emt 0:00:36]} 26. Nd4 {[%emt 0:00:48]} Rc4 {[%emt 0:02:24]} 27. Qxe7 {[%emt 0:00:13]} Rxd4 {[%emt 0:05:15]} 28. Qxd7 {[%emt 0:01:50]} Qh6 {[%emt 0:05:07]} 29. e6 {[%emt 0:06:22]} Rxf4 {[%emt 0:06:25]} 30. e7 {[%emt 0:00:10]} Rxf3 {[%emt 0:02:01]} 31. exf8=Q+ {[%emt 0:00:21]} Kxf8 {[%emt 0:00:04]} 32. Qd6+ {[%emt 0:00:06]} Kg8 {[%emt 0:04:02]} 33. gxf3 {[%emt 0:01:00]} Qe3+ {[%emt 0:00:08]} 34. Kg2 {[%emt 0:00:08]} Qd2+ {[%emt 0:04:05]} 35. Kh1 {[%emt 0:00:24]} Qf2 {[%emt 0:00:10]} 36. Qd8+ {[%emt 0:00:37]} Kg7 {[%emt 0:00:14]} 37. Qxd5 {[%emt 0:00:07]} Qg3 {[%emt 0:00:12]} 38. Qd4+ {[%emt 0:00:03]} Kg8 {[%emt 0:00:17]} 39. Qg4 {[%emt 0:00:45]} 1-0

[Event "FIDE WCCC Girls-10 2024"]
[Site "Montesilvano"]
[Date "2024.11.23"]
[Round "8.2"]
[White "Cetin, Beren"]
[Black "Sholpanbek, Zhansaya"]
[Result "0-1"]
[Annotator "NA RC"]
[ECO "C50"]
[WhiteElo "1658"]
[BlackElo "1657"]
[PlyCount "62"]
[EventDate "2024.11.18"]
[EventType "swiss"]
[EventCountry "ITA"]
[SourceTitle "playchess.com"]
[Source "ChessBase"]
[SourceQuality "1"]
[TimeControl "5400+30"]

1. e4 {[%emt 0:00:21]} e5 {[%emt 0:00:18]} 2. Nf3 {[%emt 0:00:07]} Nc6 {[%emt 0:00:16]} 3. Bc4 {[%emt 0:00:09]} Bc5 {[%emt 0:00:14]} 4. a3 {[%emt 0:00:24]} d6 {[%emt 0:07:01]} 5. Nc3 {[%emt 0:01:25]} Nf6 {[%emt 0:02:18]} 6. d3 {[%emt 0:00:50]} a6 {[%emt 0:00:53]} 7. b4 {[%emt 0:03:02]} Ba7 {[%emt 0:01:21]} 8. Bg5 {[%emt 0:04:06]} h6 {[%emt 0:00:13]} 9. Bxf6 {[%emt 0:02:36]} Qxf6 {[%emt 0:00:56]} 10. Nd5 {[%emt 0:00:07]} Qd8 {[%emt 0:00:08]} 11. a4 {[%emt 0:00:50]} O-O {[%emt 0:03:52]} 12. Rg1 {[%emt 0:05:25]} Be6 {[%emt 0:06:14]} 13. Qd2 {[%emt 0:01:09]} Nd4 {[%emt 0:07:08]} 14. Nxd4 {[%emt 0:01:59]} Bxd4 {[%emt 0:00:11]} 15. c3 {[%emt 0:00:49]} Ba7 {[%emt 0:00:13]} 16. g4 {[%emt 0:04:17]} c6 {[%emt 0:02:16]} 17. g5 {[%emt 0:15:53]} cxd5 {[%emt 0:01:16]} 18. gxh6 {[%emt 0:08:07]} g6 {[%emt 0:00:22]} 19. Ba2 {[%emt 0:04:27]} Qh4 {[%emt 0:02:19]} 20. Rf1 {[%emt 0:44:27]} dxe4 {[%emt 0:01:36]} 21. d4 {[%emt 0:00:00]} exd4 {[%emt 0:00:54]} 22. cxd4 {[%emt 0:00:00]} Bxa2 {[%emt 0:00:45]} 23. Rxa2 {[%emt 0:00:00]} e3 {[%emt 0:00:09]} 24. Qd1 {[%emt 0:00:00]} Rfe8 {[%emt 0:00:37]} 25. Ke2 {[%emt 0:00:00]} exf2+ {[%emt 0:00:07]} 26. Kf3 {[%emt 0:00:00]} Qh3+ {[%emt 0:00:25]} 27. Kxf2 {[%emt 0:00:00]} Qxh2+ {[%emt 0:00:07]} 28. Kf3 {[%emt 0:00:00]} Qxa2 {[%emt 0:00:12]} 29. h7+ {[%emt 0:00:00]} Kxh7 {[%emt 0:01:07]} 30. Rh1+ {[%emt 0:00:00]} Kg8 {[%emt 0:00:06]} 31. Qd3 {[%emt 0:00:00]} Qd5+ {[%emt 0:00:11]} 0-1

[Event "FIDE WCCC Girls-10 2024"]
[Site "Montesilvano"]
[Date "2024.11.23"]
[Round "8.3"]
[White "Anistoroaei, Maria"]
[Black "Zhumambayeva Aliya"]
[Result "1-0"]
[Annotator "NA RC"]
[ECO "E32"]
[WhiteElo "1715"]
[BlackElo "1607"]
[PlyCount "148"]
[EventDate "2024.11.18"]
[EventType "swiss"]
[EventCountry "ITA"]
[SourceTitle "playchess.com"]
[Source "ChessBase"]
[SourceQuality "1"]
[TimeControl "5400+30"]

1. d4 {[%emt 0:00:02]} Nf6 {[%emt 0:00:11]} 2. c4 {[%emt 0:00:07]} e6 {[%emt 0:00:03]} 3. Nf3 {[%emt 0:00:06]} Bb4+ {[%emt 0:00:06]} 4. Nbd2 {[%emt 0:00:07]} b6 {[%emt 0:00:04]} 5. e3 {[%emt 0:00:07]} Bb7 {[%emt 0:00:06]} 6. a3 {[%emt 0:00:07]} Bxd2+ {[%emt 0:00:11]} 7. Qxd2 {[%emt 0:00:06]} a5 {[%emt 0:00:13]} 8. b3 {[%emt 0:00:48]} d6 {[%emt 0:00:05]} 9. Be2 {[%emt 0:00:09]} Nbd7 {[%emt 0:00:08]} 10. Bb2 {[%emt 0:00:06]} Ne4 {[%emt 0:00:15]} 11. Qc2 {[%emt 0:00:14]} O-O {[%emt 0:00:31]} 12. O-O {[%emt 0:00:08]} f5 {[%emt 0:01:17]} 13. b4 {[%emt 0:01:30]} Ndf6 {[%emt 0:01:06]} 14. Nd2 {[%emt 0:04:29]} Nxd2 {[%emt 0:00:46]} 15. Qxd2 {[%emt 0:00:07]} Ne4 {[%emt 0:00:27]} 16. Qd3 {[%emt 0:00:56]} Qe7 {[%emt 0:01:27]} 17. b5 {[%emt 0:05:12]} Ng5 {[%emt 0:05:13]} 18. f3 {[%emt 0:12:39]} e5 {[%emt 0:06:28]} 19. dxe5 {[%emt 0:07:06]} dxe5 {[%emt 0:00:10]} 20. Qc3 {[%emt 0:07:39]} Rfe8 {[%emt 0:02:19]} 21. Rad1 {[%emt 0:01:38]} f4 {[%emt 0:38:20]} 22. exf4 {[%emt 0:03:07]} exf4 {[%emt 0:00:14]} 23. Rd2 {[%emt 0:03:29]} Qe3+ {[%emt 0:03:15]} 24. Qxe3 {[%emt 0:02:10]} Rxe3 {[%emt 0:00:16]} 25. c5 {[%emt 0:01:11]} bxc5 {[%emt 0:01:36]} 26. Bc4+ {[%emt 0:01:38]} Kf8 {[%emt 0:04:52]} 27. Rd7 {[%emt 0:02:20]} Re7 {[%emt 0:04:25]} 28. Rfd1 {[%emt 0:02:50]} Rae8 {[%emt 0:11:42]} 29. Rxe7 {[%emt 0:04:09]} Kxe7 {[%emt 0:01:19]} 30. Bxg7 {[%emt 0:01:58]} Ne6 {[%emt 0:02:38]} 31. Be5 {[%emt 0:01:14]} Rd8 {[%emt 0:11:35]} 32. Re1 {[%emt 0:03:36]} Bd5 {[%emt 0:01:48]} 33. Bxd5 {[%emt 0:04:57]} Rxd5 {[%emt 0:00:08]} 34. Bxc7 {[%emt 0:00:34]} c4 {[%emt 0:00:23]} 35. Bxa5 {[%emt 0:00:43]} Rxb5 {[%emt 0:00:26]} 36. Bb4+ {[%emt 0:00:09]} Kf6 {[%emt 0:03:06]} 37. Rc1 {[%emt 0:02:12]} Rb8 {[%emt 0:00:20]} 38. Rxc4 {[%emt 0:00:17]} Rd8 {[%emt 0:00:31]} 39. h4 {[%emt 0:02:36]} Rd1+ {[%emt 0:00:29]} 40. Kh2 {[%emt 0:02:32]} Rb1 {[%emt 0:00:19]} 41. a4 {[%emt 0:01:23]} Kf7 {[%emt 0:00:17]} 42. Bd6 {[%emt 0:02:40]} Ra1 {[%emt 0:00:12]} 43. Rb4 {[%emt 0:03:40]} Ra2 {[%emt 0:00:24]} 44. Rb7+ {[%emt 0:01:12]} Kf6 {[%emt 0:00:21]} 45. Ra7 {[%emt 0:04:06]} Kf5 {[%emt 0:00:51]} 46. Ra5+ {[%emt 0:08:17]} Kf6 {[%emt 0:00:13]} 47. Be5+ {[%emt 0:00:33]} Kg6 {[%emt 0:01:07]} 48. Ra6 {[%emt 0:00:54]} Kf5 {[%emt 0:00:09]} 49. Bh8 {[%emt 0:01:02]} Ra3 {[%emt 0:01:25]} 50. a5 {[%emt 0:02:44]} Ra2 {[%emt 0:00:49]} 51. Ra7 {[%emt 0:01:45]} Kg6 {[%emt 0:00:20]} 52. a6 {[%emt 0:02:20]} Ra5 {[%emt 0:00:20]} 53. Ra8 {[%emt 0:00:46]} Kf7 {[%emt 0:00:09]} 54. Ra7+ {[%emt 0:00:31]} Kg6 {[%emt 0:00:19]} 55. Kh3 {[%emt 0:00:29]} h5 {[%emt 0:00:37]} 56. Ra8 {[%emt 0:00:30]} Kf7 {[%emt 0:00:07]} 57. Bc3 {[%emt 0:00:20]} Ra4 {[%emt 0:00:45]} 58. Be5 {[%emt 0:00:32]} Ra5 {[%emt 0:00:16]} 59. Bd6 {[%emt 0:00:35]} Ra1 {[%emt 0:00:49]} 60. Kh2 {[%emt 0:00:16]} Ra4 {[%emt 0:00:34]} 61. a7 {[%emt 0:00:45]} Ra6 {[%emt 0:00:09]} 62. Be5 {[%emt 0:00:16]} Ra5 {[%emt 0:00:13]} 63. Rh8 {[%emt 0:00:23]} Nf8 {[%emt 0:00:47]} 64. Bd6 {[%emt 0:00:51]} Rxa7 {[%emt 0:00:22]} 65. Rxf8+ {[%emt 0:00:13]} Kg6 {[%emt 0:00:08]} 66. Bxf4 {[%emt 0:00:26]} Rf7 {[%emt 0:00:44]} 67. Rxf7 {[%emt 0:00:08]} Kxf7 {[%emt 0:00:05]} 68. g4 {[%emt 0:00:17]} Kg6 {[%emt 0:00:05]} 69. Kg3 {[%emt 0:00:20]} hxg4 {[%emt 0:00:11]} 70. Kxg4 {[%emt 0:00:04]} Kh7 {[%emt 0:00:08]} 71. Kg5 {[%emt 0:00:05]} Kg7 {[%emt 0:00:35]} 72. Be5+ {[%emt 0:00:17]} Kh7 {[%emt 0:00:14]} 73. f4 {[%emt 0:00:04]} Kg8 {[%emt 0:00:05]} 74. Kg6 {[%emt 0:00:09]} Kf8 {[%emt 0:00:04]} 1-0

[Event "FIDE WCCC Girls-10 2024"]
[Site "Montesilvano"]
[Date "2024.11.23"]
[Round "8.4"]
[White "Nguyen Doan, Bao Anh Angelina"]
[Black "Yunker, Alisa Genrietta"]
[Result "1-0"]
[Annotator "NA RC"]
[ECO "B40"]
[WhiteElo "1628"]
[BlackElo "1872"]
[PlyCount "95"]
[EventDate "2024.11.18"]
[EventType "swiss"]
[EventCountry "ITA"]
[SourceTitle "playchess.com"]
[Source "ChessBase"]
[SourceQuality "1"]
[TimeControl "5400+30"]

1. e4 {[%emt 0:00:01]} c5 {[%emt 0:00:00]} 2. Nf3 {[%emt 0:00:07]} e6 {[%emt 0:00:05]} 3. d4 {[%emt 0:00:03]} cxd4 {[%emt 0:00:10]} 4. Nxd4 {[%emt 0:00:04]} Nf6 {[%emt 0:00:42]} 5. Bd3 {[%emt 0:03:56]} Nc6 {[%emt 0:02:32]} 6. Nxc6 {[%emt 0:01:26]} dxc6 {[%emt 0:00:31]} 7. O-O {[%emt 0:01:42]} e5 {[%emt 0:00:10]} 8. Nd2 {[%emt 0:01:48]} Bc5 {[%emt 0:00:10]} 9. Nc4 {[%emt 0:03:08]} Qc7 {[%emt 0:03:15]} 10. a4 {[%emt 0:02:07]} Be6 {[%emt 0:03:22]} 11. Re1 {[%emt 0:09:53]} O-O-O {[%emt 0:03:42]} 12. Qe2 {[%emt 0:07:23]} Bg4 {[%emt 0:02:42]} 13. Qf1 {[%emt 0:01:45]} Nd7 {[%emt 0:00:43]} 14. Bd2 {[%emt 0:10:15]} Be6 {[%emt 0:07:32]} 15. b4 {[%emt 0:03:48]} Be7 {[%emt 0:00:27]} 16. Reb1 {[%emt 0:11:49]} Kb8 {[%emt 0:10:31]} 17. Be3 {[%emt 0:10:21]} Ka8 {[%emt 0:12:09]} 18. a5 {[%emt 0:06:56]} c5 {[%emt 0:02:55]} 19. b5 {[%emt 0:05:10]} Qc8 {[%emt 0:02:32]} 20. Nb6+ {[%emt 0:07:35]} Nxb6 {[%emt 0:00:05]} 21. axb6 {[%emt 0:00:08]} a6 {[%emt 0:00:35]} 22. bxa6 {[%emt 0:02:35]} c4 {[%emt 0:02:03]} 23. axb7+ {[%emt 0:00:25]} Kxb7 {[%emt 0:00:18]} 24. Ra7+ {[%emt 0:01:52]} Kb8 {[%emt 0:00:15]} 25. Rba1 {[%emt 0:05:17]} cxd3 {[%emt 0:03:41]} 26. Ra8+ {[%emt 0:00:22]} Kb7 {[%emt 0:00:01]} 27. R1a7+ {[%emt 0:00:52]} Kc6 {[%emt 0:00:01]} 28. Rxc8+ {[%emt 0:00:49]} Rxc8 {[%emt 0:00:40]} 29. Rxe7 {[%emt 0:01:03]} Kd6 {[%emt 0:00:40]} 30. Ra7 {[%emt 0:00:44]} Bc4 {[%emt 0:00:25]} 31. cxd3 {[%emt 0:00:26]} Bb5 {[%emt 0:00:16]} 32. Qb1 {[%emt 0:00:49]} Bd7 {[%emt 0:00:05]} 33. Qb4+ {[%emt 0:00:47]} Ke6 {[%emt 0:00:03]} 34. b7 {[%emt 0:01:01]} Rc6 {[%emt 0:00:12]} 35. b8=Q {[%emt 0:00:29]} Rxb8 {[%emt 0:00:02]} 36. Qxb8 {[%emt 0:00:08]} Rd6 {[%emt 0:00:12]} 37. Qb3+ {[%emt 0:00:19]} Kf6 {[%emt 0:00:04]} 38. f4 {[%emt 0:00:22]} Kg6 {[%emt 0:00:57]} 39. fxe5 {[%emt 0:00:34]} Re6 {[%emt 0:00:09]} 40. Rxd7 {[%emt 0:00:23]} h6 {[%emt 0:00:14]} 41. Qb8 {[%emt 0:00:43]} Kh7 {[%emt 0:00:10]} 42. Rxf7 {[%emt 0:00:20]} Rg6 {[%emt 0:00:07]} 43. Rf8 {[%emt 0:00:25]} Re6 {[%emt 0:00:12]} 44. Rh8+ {[%emt 0:00:30]} Kg6 {[%emt 0:00:06]} 45. Rxh6+ {[%emt 0:00:51]} gxh6 {[%emt 0:00:08]} 46. Qg8+ {[%emt 0:00:04]} Kh5 {[%emt 0:00:04]} 47. Qxe6 {[%emt 0:00:18]} Kh4 {[%emt 0:00:04]} 48. Qh3# {[%emt 0:00:05]} 1-0

[Event "FIDE WCCC Girls-10 2024"]
[Site "Montesilvano"]
[Date "2024.11.23"]
[Round "8.5"]
[White "Yang, Aimee"]
[Black "Shtepa, Liubov"]
[Result "1-0"]
[Annotator "NA RC"]
[ECO "D31"]
[WhiteElo "1864"]
[BlackElo "1615"]
[PlyCount "83"]
[EventDate "2024.11.18"]
[EventType "swiss"]
[EventCountry "ITA"]
[SourceTitle "playchess.com"]
[Source "ChessBase"]
[SourceQuality "1"]
[TimeControl "5400+30"]

1. d4 d5 2. c4 e6 3. Nc3 Be7 4. cxd5 exd5 5. Bf4 c6 6. e3 Bf5 7. Bd3 Bxd3 8. Qxd3 Nd7 9. Nge2 Ngf6 10. h3 Nb6 11. O-O O-O 12. Rae1 Nc4 13. b3 Nd6 14. f3 Qd7 15. e4 dxe4 16. fxe4 Nh5 17. Bh2 g6 18. Rf3 Rad8 19. Ref1 Ng7 20. Kh1 Ne6 21. Rd1 Ng5 22. Rff1 Nc8 23. Qe3 Nb6 24. d5 cxd5 25. exd5 f5 26. d6 Bf6 27. a4 Rfe8 28. Qd2 Nf7 29. Nb5 Bg5 30. Qb2 Qe6 31. Ng1 Bf6 32. Qa3 Qd7 33. Nf3 Nc8 34. Rd2 Re3 35. Bg1 Re6 36. Bh2 Ncxd6 37. Nxd6 Nxd6 38. Rfd1 Be7 39. Bf4 h6 40. Qc5 g5 41. Be5 Rc8 42. Qd5 1-0

[Event "FIDE WCCC Girls-10 2024"]
[Site "Montesilvano"]
[Date "2024.11.23"]
[Round "8.6"]
[White "Nandinjiguur, Chinzorig"]
[Black "Pham, Nhu Y"]
[Result "1-0"]
[Annotator "RC"]
[ECO "E19"]
[WhiteElo "1807"]
[BlackElo "1914"]
[PlyCount "167"]
[EventDate "2024.11.18"]
[EventType "swiss"]
[EventCountry "ITA"]
[SourceTitle "playchess.com"]
[Source "ChessBase"]
[SourceQuality "1"]
[TimeControl "5400+30"]

1. d4 {[%emt 0:00:03]} Nf6 {[%emt 0:00:18]} 2. c4 {[%emt 0:00:33]} e6 {[%emt 0:00:04]} 3. Nf3 {[%emt 0:00:12]} b6 {[%emt 0:00:15]} 4. g3 {[%emt 0:00:29]} Bb7 {[%emt 0:00:08]} 5. Bg2 {[%emt 0:00:53]} Be7 {[%emt 0:00:45]} 6. O-O {[%emt 0:00:41]} O-O {[%emt 0:00:07]} 7. Nc3 {[%emt 0:02:18]} Ne4 {[%emt 0:00:32]} 8. Qc2 {[%emt 0:06:45]} Nxc3 {[%emt 0:00:15]} 9. Qxc3 {[%emt 0:00:28]} Bf6 {[%emt 0:04:07]} 10. Qd3 {[%emt 0:03:54]} d5 {[%emt 0:03:57]} 11. Bf4 {[%emt 0:04:22]} c5 {[%emt 0:03:48]} 12. cxd5 {[%emt 0:05:17]} exd5 {[%emt 0:00:35]} 13. dxc5 {[%emt 0:05:52]} bxc5 {[%emt 0:01:03]} 14. Qc2 {[%emt 0:03:52]} Na6 {[%emt 0:06:25]} 15. Rfd1 {[%emt 0:11:00]} Qb6 {[%emt 0:06:36]} 16. Be5 {[%emt 0:05:50]} Rfe8 {[%emt 0:17:35]} 17. Qf5 {[%emt 0:09:10]} Qe6 {[%emt 0:06:45]} 18. Qxe6 {[%emt 0:01:06]} Rxe6 {[%emt 0:01:00]} 19. Bxf6 {[%emt 0:00:31]} gxf6 {[%emt 0:00:43]} 20. e3 {[%emt 0:01:37]} Rd8 {[%emt 0:03:24]} 21. Rd2 {[%emt 0:06:57]} Rb6 {[%emt 0:06:51]} 22. Rad1 {[%emt 0:04:30]} Nc7 {[%emt 0:07:15]} 23. Nh4 {[%emt 0:02:11]} Kf8 {[%emt 0:08:01]} 24. Rc2 {[%emt 0:04:51]} Ne6 {[%emt 0:04:52]} 25. f4 {[%emt 0:04:27]} Rb5 {[%emt 0:08:15]} 26. Bf1 {[%emt 0:05:32]} Ra5 {[%emt 0:00:52]} 27. a3 {[%emt 0:00:23]} d4 {[%emt 0:02:42]} 28. Rcd2 {[%emt 0:01:22]} Be4 {[%emt 0:01:53]} 29. f5 {[%emt 0:03:34]} Ng5 {[%emt 0:00:27]} 30. exd4 {[%emt 0:00:55]} Nf3+ {[%emt 0:00:18]} 31. Nxf3 {[%emt 0:00:09]} Bxf3 {[%emt 0:00:04]} 32. dxc5 {[%emt 0:00:45]} Rxd2 {[%emt 0:00:34]} 33. Rxd2 {[%emt 0:00:07]} Rxc5 {[%emt 0:00:04]} 34. Bh3 {[%emt 0:01:16]} Be4 {[%emt 0:01:05]} 35. g4 {[%emt 0:00:25]} Kg7 {[%emt 0:02:22]} 36. Kf2 {[%emt 0:01:58]} h5 {[%emt 0:00:45]} 37. Ke3 {[%emt 0:01:54]} Re5 {[%emt 0:00:18]} 38. Kf4 {[%emt 0:00:16]} Bb1 {[%emt 0:01:30]} 39. Rd1 {[%emt 0:02:05]} Bc2 {[%emt 0:00:41]} 40. Rd2 {[%emt 0:00:35]} Bb1 {[%emt 0:00:16]} 41. gxh5 {[%emt 0:00:55]} Re4+ {[%emt 0:00:19]} 42. Kf3 {[%emt 0:00:19]} Re5 {[%emt 0:00:39]} 43. Re2 {[%emt 0:00:39]} Rb5 {[%emt 0:01:01]} 44. Kf4 {[%emt 0:00:30]} Rc5 {[%emt 0:01:02]} 45. Re1 {[%emt 0:00:54]} Bc2 {[%emt 0:00:20]} 46. Rf1 {[%emt 0:00:24]} Kh6 {[%emt 0:00:23]} 47. Bg4 {[%emt 0:00:27]} Re5 {[%emt 0:01:19]} 48. Kg3 {[%emt 0:00:22]} Bd3 {[%emt 0:00:36]} 49. Rf2 {[%emt 0:00:48]} Re4 {[%emt 0:01:06]} 50. Rd2 {[%emt 0:00:31]} Bc4 {[%emt 0:00:37]} 51. Rd6 {[%emt 0:00:25]} Kg7 {[%emt 0:00:18]} 52. h6+ {[%emt 0:00:10]} Kxh6 {[%emt 0:00:07]} 53. Bf3 {[%emt 0:00:34]} Re5 {[%emt 0:00:17]} 54. Rxf6+ {[%emt 0:00:07]} Kg7 {[%emt 0:00:42]} 55. Rc6 {[%emt 0:00:23]} Bd3 {[%emt 0:00:11]} 56. f6+ {[%emt 0:00:22]} Kg6 {[%emt 0:00:12]} 57. h4 {[%emt 0:00:32]} Rf5 {[%emt 0:00:39]} 58. b4 {[%emt 0:01:00]} Rxf6 {[%emt 0:00:44]} 59. Rxf6+ {[%emt 0:00:07]} Kxf6 {[%emt 0:00:02]} 60. Kf4 {[%emt 0:00:31]} Bb5 {[%emt 0:00:31]} 61. Bd1 {[%emt 0:00:09]} a6 {[%emt 0:00:20]} 62. a4 {[%emt 0:00:22]} Bc6 {[%emt 0:00:09]} 63. Be2 {[%emt 0:00:08]} Bb7 {[%emt 0:00:20]} 64. a5 {[%emt 0:00:20]} Kg6 {[%emt 0:00:52]} 65. b5 {[%emt 0:01:22]} axb5 {[%emt 0:02:47]} 66. Bxb5 {[%emt 0:00:04]} Kh5 {[%emt 0:00:00]} 67. Kg3 {[%emt 0:00:07]} f5 {[%emt 0:00:00]} 68. Be8+ {[%emt 0:00:05]} Kh6 {[%emt 0:00:00]} 69. Kf4 {[%emt 0:00:05]} Bc8 {[%emt 0:00:00]} 70. h5 {[%emt 0:01:02]} Kg7 {[%emt 0:00:00]} 71. Kg5 {[%emt 0:00:50]} Kh7 {[%emt 0:00:00]} 72. Bg6+ {[%emt 0:00:06]} Kg7 {[%emt 0:00:00]} 73. Bxf5 {[%emt 0:00:12]} Ba6 {[%emt 0:00:00]} 74. h6+ {[%emt 0:00:28]} Kf7 {[%emt 0:00:00]} 75. Bg6+ {[%emt 0:00:23]} Kg8 {[%emt 0:00:00]} 76. Kf6 {[%emt 0:00:12]} Bb7 {[%emt 0:00:30]} 77. Ke5 {[%emt 0:00:09]} Ba6 {[%emt 0:00:27]} 78. Kd6 {[%emt 0:00:12]} Bf1 {[%emt 0:00:06]} 79. Kc6 {[%emt 0:00:23]} Kh8 {[%emt 0:00:16]} 80. Kb6 {[%emt 0:00:23]} Kg8 {[%emt 0:00:16]} 81. Be8 {[%emt 0:00:40]} Kf8 {[%emt 0:03:12]} 82. Bb5 {[%emt 0:00:07]} Bg2 {[%emt 0:00:09]} 83. a6 {[%emt 0:00:05]} Kf7 {[%emt 0:01:16]} 84. a7 {[%emt 0:00:09]} 1-0